[Event "SVK Extraliga 2017-18"]
[Site "Slovakia"]
[Date "2017.12.09"]
[Round "5"]
[White "Roubalik, Jakub"]
[Black "Karas, Marek"]
[Result "1-0"]
[ECO "A84"]
[WhiteElo "2396"]
[BlackElo "2240"]
[Annotator "NA"]
[PlyCount "63"]
[EventDate "2017.??.??"]
[EventType "team-tourn"]
[EventCountry "SVK"]
[SourceTitle "playchess.com"]
[Source "ChessBase"]
[SourceQuality "1"]
[TimeControl "40/5400+30:1800+30"]

{[%evp 15,54,5,12,14,14,14,20,30,27,35,39,33,45,27,41,29,47,28,46,42,31,22,57,32,49,49,89,13,143,175,250,182,352,339,517,645,682,691,589,439,397]} 1. d4 {[%emt 0:00:00]} e6 {[%emt 0:00:07]} 2. c4 {[%emt 0:00:06]} f5 {[%emt 0:00:08]} 3. Nc3 {[%emt 0:04:26]} Nf6 {[%emt 0:00:27]} 4. Nf3 {[%emt 0:00:10]} Bb4 {[%emt 0:00:34]} 5. Qb3 {[%emt 0:02:11]} Qe7 {[%emt 0:02:38]} 6. a3 {[%emt 0:00:23]} Bxc3+ {[%emt 0:00:15]} 7. Qxc3 {[%emt 0:00:02]} O-O {[%emt 0:00:24]} 8. b4 {[%emt 0:05:28]} b6 {[%emt 0:01:27]} 9. e3 {[%emt 0:00:41]} Bb7 {[%emt 0:00:24]} 10. Be2 {[%emt 0:00:18]} d6 {[%emt 0:03:29]} 11. Bb2 {[%emt 0:04:33]} Ne4 {[%emt 0:01:37]} 12. Qc2 {[%emt 0:06:00]} Nd7 {[%emt 0:01:19]} 13. O-O {[%emt 0:00:25] LiveBook: 31 Games} Ng5 {[%emt 0:10:26] E32: Nimzo-Indian: Classical (4 Qc2): 4...0-0} (13... c5 14. Nd2 Qg5 15. f4 Qg6 16. Nf3 Ndf6 17. Rad1 Ng4 18. Qb3 Qh6 19. bxc5 Nxc5 20. dxc5 Bxf3 21. h3 Bxe2 22. hxg4 fxg4 23. e4 Bxf1 24. Rxf1 Rxf4 {0-1 (24) Karpov,A (2619)-Anand,V (2788) Moscow 2009}) 14. d5 {[%emt 0:06:34]} Nxf3+ {[%emt 0:01:36]} 15. Bxf3 {[%emt 0:00:10]} e5 {[%emt 0:05:39]} 16. e4 {[%emt 0:05:35]} g6 $146 {[%emt 0:05:48]} ({Predecessor:} 16... f4 17. Bc3 Qh4 18. c5 Nf6 19. a4 Bc8 20. Qe2 g5 21. g3 {½-½ (55) Galperin,I (2000)-Korovin,A (2000) ICCF email 2008}) 17. g3 {[%emt 0:07:26]} f4 {[%emt 0:03:22]} 18. Bg4 {[%emt 0:00:15]} h5 {[%emt 0:05:15]} 19. Be6+ {[%emt 0:00:19]} Kh7 {[%emt 0:00:15]} 20. f3 {[%emt 0:00:49]} g5 {[%emt 0:05:12]} 21. Qg2 {[%emt 0:03:58]} (21. Bf5+ $16 Kh8 22. gxf4 gxf4 23. Kh1) 21... Kh6 {[%emt 0:07:29]} (21... Nf6 $11 {keeps the balance.}) 22. Kh1 {[%emt 0:06:24]} fxg3 {[%emt 0:22:35]} (22... Rae8 $142 23. Rg1 Bc8) 23. Qxg3 {[%emt 0:17:52]} ({Much less strong is} 23. hxg3 $6 Nf6 $16) 23... Nf6 $2 {[%emt 0:04:49]} (23... Rf4 24. Bc1 Nf8) 24. h4 {[%emt 0:06:41]} Nh7 $2 {[%emt 0:00:48]} (24... g4 25. fxg4 hxg4 26. Bxg4 Nh5) 25. hxg5+ {[%emt 0:03:48]} Qxg5 {[%emt 0:01:36]} 26. Bc1 {[%emt 0:00:10]} Rf4 $18 {[%emt 0:00:06]} 27. Bxf4 {[%emt 0:00:05]} exf4 {[%emt 0:00:12]} 28. Qh2 {[%emt 0:04:38]} Qg3 {[%emt 0:01:06]} 29. Qxg3 {[%emt 0:01:44]} fxg3 {[%emt 0:00:08]} 30. f4 {[%emt 0:00:05]} Re8 {[%emt 0:00:35]} 31. Kg2 {[%emt 0:01:05]} Nf6 {[%emt 0:00:26]} 32. Rae1 {[%emt 0:01:05]} 1-0

[Event "SVK Extraliga 2017-18"]
[Site "Slovakia"]
[Date "2017.12.09"]
[Round "5"]
[White "Hrabusa, Matej"]
[Black "Repkova, Eva"]
[Result "1/2-1/2"]
[ECO "A05"]
[WhiteElo "2376"]
[BlackElo "2301"]
[Annotator "NA"]
[PlyCount "66"]
[EventDate "2017.??.??"]
[EventType "team-tourn"]
[EventCountry "SVK"]
[SourceTitle "playchess.com"]
[Source "ChessBase"]
[SourceQuality "1"]
[TimeControl "40/5400+30:1800+30"]

{[%evp 14,65,21,29,35,14,16,0,32,6,10,-3,0,-22,26,30,36,0,12,0,0,-47,-15,-35,-37,-39,-14,-32,-1,0,-29,-55,0,0,0,-22,0,0,0,0,0,-90,-39,-38,-60,-163,0,0,0,0,0,0,0,0]} 1. Nf3 Nf6 2. c4 e6 3. g3 b6 4. Bg2 {[%emt 0:00:09]} Bb7 {[%emt 0:00:51]} 5. O-O {[%emt 0:00:41]} Be7 {[%emt 0:01:43]} 6. b3 {[%emt 0:04:18]} O-O {[%emt 0:00:21]} 7. Bb2 {[%emt 0:00:51]} d6 {[%emt 0:01:14]} 8. d4 {[%emt 0:09:27]} Nbd7 {[%emt 0:00:07] LiveBook: 34 Games} 9. Re1 {[%emt 0:02:41] E17: Queen's Indian: 4 g3 Bb7 5 Bg2 Be7} (9. Nbd2 Ne4 10. Nxe4 Bxe4 11. Nd2 Bxg2 12. Kxg2 Qc8 13. e3 Qb7+ 14. Qf3 Qxf3+ 15. Kxf3 {½-½ (15) Kurajica,B (2556)-Savic,M (2515) Sarajevo 2012}) 9... Ne4 {[%emt 0:01:02]} 10. Nfd2 {[%emt 0:03:24]} f5 {[%emt 0:01:00]} 11. Qc2 $146 {[%emt 0:03:19]} Ndf6 {[%emt 0:02:12]} 12. Nc3 {[%emt 0:03:40]} d5 {[%emt 0:00:29]} 13. Ncxe4 {[%emt 0:06:58]} fxe4 {[%emt 0:00:35]} 14. f3 {[%emt 0:01:28]} Qe8 {[%emt 0:03:43]} 15. cxd5 {[%emt 0:11:34]} exd5 {[%emt 0:00:05]} 16. Qxc7 {[%emt 0:00:49]} Bb4 {[%emt 0:00:35]} 17. Nxe4 {[%emt 0:16:03]} dxe4 {[%emt 0:06:06]} 18. Qxb7 {[%emt 0:00:09]} Rf7 {[%emt 0:00:45]} 19. Qa6 {[%emt 0:00:47]} Bxe1 {[%emt 0:00:58]} 20. Rxe1 {[%emt 0:00:04]} exf3 {[%emt 0:00:03]} 21. Bxf3 {[%emt 0:00:47]} Qe3+ {[%emt 0:00:10]} 22. Kg2 {[%emt 0:00:46]} (22. Kh1 $5 {[%cal Rf3a8]} Ne4 23. Qc4 $11) 22... Ne4 {[%emt 0:00:26]} 23. Rf1 {[%emt 0:03:22]} Raf8 {[%emt 0:00:48]} 24. d5 {[%emt 0:04:51] [#]} Rxf3 $1 {[%emt 0:09:06]} 25. Rxf3 {[%emt 0:05:37]} Rxf3 {[%emt 0:00:48]} 26. exf3 {[%emt 0:00:11]} Qd2+ {[%emt 0:03:22]} 27. Kh1 {[%emt 0:05:51]} (27. Kh3 $11 {hält das Gleichgewicht.} Nf2+ 28. Kg2 Nd1+ 29. Kh3 Nf2+ 30. Kg2 Ng4+ 31. Kh3 Nf2+) 27... Qd1+ $1 {[%emt 0:03:56]} 28. Kg2 {[%emt 0:00:06]} Qc2+ {[%emt 0:00:03]} 29. Kh3 {[%emt 0:04:19] [#]} (29. Kg1 $1 $15 Ng5 30. d6 Nxf3+ 31. Kf1) 29... Nf2+ $2 {[%emt 0:04:01]} (29... Ng5+ $1 $19 30. Kg4 g6) 30. Kh4 {[%emt 0:02:17]} Qc7 {[%emt 0:13:32]} (30... Qxb2 $5 31. Qc8+ $8 Kf7 32. Qe6+ Kf8 $11) 31. Bf6 $1 {[%emt 0:06:05]} gxf6 {[%emt 0:10:05]} 32. Qe2 {[%emt 0:00:19]} Qc5 {[%emt 0:00:09]} 33. g4 $11 {[%emt 0:01:34]} Nh1 {[%emt 0:07:51]} 1/2-1/2

[Event "SVK Extraliga 2017-18"]
[Site "Slovakia"]
[Date "2017.12.09"]
[Round "5"]
[White "Zetocha, Claudiu"]
[Black "Haring, Filip"]
[Result "0-1"]
[ECO "D45"]
[WhiteElo "2352"]
[BlackElo "2267"]
[Annotator "NA"]
[PlyCount "57"]
[EventDate "2017.??.??"]
[EventType "team-tourn"]
[EventCountry "SVK"]
[SourceTitle "playchess.com"]
[Source "ChessBase"]
[SourceQuality "1"]
[TimeControl "40/5400+30:1800+30"]

1. Nf3 {[%emt 0:00:00]} d5 {[%emt 0:00:11]} 2. d4 {[%emt 0:00:34]} Nf6 {[%emt 0:00:15]} 3. c4 {[%emt 0:01:05]} e6 {[%emt 0:00:11]} 4. Nc3 {[%emt 0:00:32]} c6 {[%emt 0:00:41]} 5. e3 {[%emt 0:01:06]} Be7 {[%emt 0:01:48]} 6. Bd3 {[%emt 0:08:06]} dxc4 {[%emt 0:01:17]} 7. Bxc4 {[%emt 0:00:08]} b5 {[%emt 0:00:12]} 8. Be2 {[%emt 0:01:04]} O-O {[%emt 0:01:55]} 9. O-O {[%emt 0:00:42]} Bb7 {[%emt 0:01:54]} 10. Qc2 {[%emt 0:01:26]} Nbd7 {[%emt 0:05:41]} 11. Rd1 {[%emt 0:14:01]} Rc8 {[%emt 0:05:41]} 12. a3 $11 {[%emt 0:08:34]} c5 {[%emt 0:02:33]} 13. Bxb5 {[%emt 0:20:16]} Bxf3 {[%emt 0:01:00]} 14. gxf3 {[%emt 0:00:41]} cxd4 {[%emt 0:05:36]} 15. Rxd4 {[%emt 0:01:17]} Qc7 {[%emt 0:00:42]} 16. Qd1 {[%emt 0:05:25]} Ne5 {[%emt 0:03:14]} 17. Be2 {[%emt 0:02:18]} Bc5 {[%emt 0:02:58]} 18. Rd2 {[%emt 0:01:28]} Ng6 {[%emt 0:05:37]} 19. Na4 {[%emt 0:07:52]} Qe5 {[%emt 0:05:31]} 20. Nxc5 {[%emt 0:02:57]} Qxc5 {[%emt 0:08:44]} 21. Rd4 {[%emt 0:04:15]} Qg5+ {[%emt 0:03:07]} 22. Kh1 {[%emt 0:00:34]} e5 {[%emt 0:00:28]} 23. Rd6 {[%emt 0:02:04]} Ne8 {[%emt 0:10:46]} 24. Rd2 {[%emt 0:03:22]} Rc6 {[%emt 0:04:15]} 25. Qg1 {[%emt 0:01:57]} Qh6 {[%emt 0:02:11]} 26. Rd8 {[%emt 0:03:11]} Qh4 {[%emt 0:05:24]} 27. Bb5 {[%emt 0:01:53]} Rxc1 {[%emt 0:01:19]} 28. Bf1 Rc6 29. Ra8 0-1

[Event "SVK Extraliga 2017-18"]
[Site "Slovakia"]
[Date "2017.12.09"]
[Round "5"]
[White "Briestensky, Rastislav"]
[Black "Urhegyi, Marton"]
[Result "1-0"]
[ECO "B50"]
[WhiteElo "2322"]
[BlackElo "2249"]
[Annotator "NA"]
[PlyCount "104"]
[EventDate "2017.??.??"]
[EventType "team-tourn"]
[EventCountry "SVK"]
[SourceTitle "playchess.com"]
[Source "ChessBase"]
[SourceQuality "1"]
[TimeControl "40/5400+30:1800+30"]

1. e4 {[%emt 0:00:00]} c5 {[%emt 0:00:13]} 2. Nf3 {[%emt 0:00:00]} d6 {[%emt 0:00:03]} 3. g3 {[%emt 0:00:37]} Nc6 {[%emt 0:01:23]} 4. Bg2 {[%emt 0:00:20]} g6 {[%emt 0:02:54]} 5. O-O {[%emt 0:02:11] LiveBook: 151 Partien} Bg7 {[%emt 0:00:12]} 6. d3 {[%emt 0:03:27]} e6 {[%emt 0:11:51]} 7. Re1 {[%emt 0:06:04]} Nge7 {[%emt 0:00:28]} 8. c3 {[%emt 0:00:14] A04: Unusual lines after 1 Nf3 and King's Indian Attack} d5 {[%emt 0:07:07]} (8... O-O 9. Na3 e5 10. Nc2 h6 11. b4 b6 12. Be3 Kh7 13. bxc5 bxc5 14. d4 exd4 15. cxd4 d5 16. exd5 Nxd5 17. dxc5 Nxe3 18. Nxe3 Bxa1 19. Qxa1 {½-½ (102) Lie,K (2533)-Ragger,M (2689) Norway 2016}) 9. e5 {[%emt 0:00:55]} O-O {[%emt 0:01:59]} 10. h4 {[%emt 0:03:37]} b5 $146 {[%emt 0:06:15]} ({Predecessor:} 10... Qc7 11. Bf4 Qb6 12. Qc1 f6 13. Nbd2 fxe5 14. Nxe5 Nxe5 15. Bxe5 Bxe5 16. Rxe5 Nc6 17. Re1 {½-½ (33) Gardim,L (1591)-Calixto,R (1829) Ribeirao Preto 2014}) 11. Bf4 {[%emt 0:08:35]} c4 {[%emt 0:11:36]} 12. d4 {[%emt 0:01:07]} b4 {[%emt 0:01:04]} 13. h5 {[%emt 0:03:41]} Re8 {[%emt 0:09:51]} 14. Nbd2 {[%emt 0:08:38]} bxc3 {[%emt 0:04:45]} 15. bxc3 {[%emt 0:00:06]} Qa5 {[%emt 0:04:32]} 16. Qc1 {[%emt 0:01:10]} Bd7 {[%emt 0:08:50]} 17. Nf1 {[%emt 0:00:37]} Reb8 {[%emt 0:03:11]} 18. Ne3 {[%emt 0:01:40]} Qb6 {[%emt 0:07:14]} 19. Re2 {[%emt 0:05:49]} gxh5 {[%emt 0:05:45]} 20. Bg5 {[%emt 0:06:51]} Ng6 {[%emt 0:02:20]} 21. Nd1 {[%emt 0:02:01]} Bf8 {[%emt 0:04:12]} 22. Bf6 {[%emt 0:03:28]} h6 {[%emt 0:01:34]} 23. Ne1 $11 {[%emt 0:07:00]} ({Better is} 23. Nh2 $16) 23... Bg7 {[%emt 0:01:41]} 24. Bxg7 {[%emt 0:01:26]} Kxg7 {[%emt 0:00:04]} 25. Qe3 {[%emt 0:05:33]} Qd8 {[%emt 0:01:26]} 26. f4 {[%emt 0:00:09]} f5 {[%emt 0:01:02]} 27. Bf3 {[%emt 0:02:24]} h4 {[%emt 0:00:57]} 28. Bh5 {[%emt 0:02:34]} Be8 {[%emt 0:01:20]} 29. g4 {[%emt 0:00:40]} Nce7 {[%emt 0:00:33]} 30. Rg2 {[%emt 0:01:08]} Rb7 {[%emt 0:00:31]} 31. Nf3 {[%emt 0:00:55]} Rab8 {[%emt 0:00:33]} 32. Bxg6 {[%emt 0:06:04]} Bxg6 {[%emt 0:00:30]} 33. Nxh4 {[%emt 0:00:42]} fxg4 {[%emt 0:00:25]} 34. Rxg4 {[%emt 0:00:15]} Rb1 {[%emt 0:00:36]} 35. Rxb1 {[%emt 0:00:27]} Rxb1 {[%emt 0:00:02]} 36. Qd2 {[%emt 0:00:12]} Qe8 {[%emt 0:00:57]} 37. Qc2 {[%emt 0:00:44]} Rb6 {[%emt 0:00:19]} 38. Ne3 {[%emt 0:00:37]} Kh7 {[%emt 0:00:20]} 39. Nxg6 {[%emt 0:01:07]} Nxg6 {[%emt 0:00:03]} 40. f5 {[%emt 0:00:11]} exf5 {[%emt 0:30:46]} 41. Qxf5 {[%emt 0:31:22]} Qg8 {[%emt 0:00:00]} 42. Rg2 {[%emt 0:00:00]} Kh8 {[%emt 0:00:00]} 43. Kh2 {[%emt 0:00:00]} a5 {[%emt 0:00:00]} 44. Qh5 {[%emt 0:00:00]} Kh7 {[%emt 0:00:00]} 45. Rf2 {[%emt 0:00:00]} a4 {[%emt 0:02:29]} 46. Ng4 {[%emt 0:00:00]} Qg7 {[%emt 0:00:28]} 47. Nf6+ {[%emt 0:00:00]} Kh8 {[%emt 0:00:34]} 48. Rg2 {[%emt 0:00:00]} Rxf6 {[%emt 0:00:38]} 49. exf6 {[%emt 0:00:00]} Qc7+ {[%emt 0:00:27]} 50. Kh1 {[%emt 0:00:00]} Qf4 {[%emt 0:00:38]} 51. Rxg6 {[%emt 0:00:37]} Qe4+ {[%emt 0:00:43]} 52. Rg2 {[%emt 0:00:21]} Qe3 1-0

[Event "SVK Extraliga 2017-18"]
[Site "Slovakia"]
[Date "2017.12.09"]
[Round "5"]
[White "Jacko, Vladimir"]
[Black "Salai, Ladislav"]
[Result "0-1"]
[ECO "B33"]
[WhiteElo "2317"]
[BlackElo "2339"]
[Annotator "NA"]
[PlyCount "86"]
[EventDate "2017.??.??"]
[EventType "team-tourn"]
[EventCountry "SVK"]
[SourceTitle "playchess.com"]
[Source "ChessBase"]
[SourceQuality "1"]
[TimeControl "40/5400+30:1800+30"]

1. e4 {[%emt 0:16:24]} c5 {[%emt 0:00:19]} 2. Nf3 {[%emt 0:03:20]} Nc6 {[%emt 0:00:11]} 3. d4 {[%emt 0:01:49]} cxd4 {[%emt 0:00:11]} 4. Nxd4 {[%emt 0:00:10]} Nf6 {[%emt 0:00:10]} 5. Nc3 {[%emt 0:00:41]} e5 {[%emt 0:00:10]} 6. Ndb5 {[%emt 0:00:04]} d6 {[%emt 0:00:14]} 7. Bg5 {[%emt 0:00:34]} a6 {[%emt 0:00:22]} 8. Na3 {[%emt 0:00:05]} b5 {[%emt 0:00:17]} 9. Nd5 {[%emt 0:00:12]} Be7 {[%emt 0:00:38]} 10. Bxf6 {[%emt 0:00:21]} Bxf6 {[%emt 0:00:19]} 11. c4 {[%emt 0:00:09]} bxc4 {[%emt 0:15:35]} 12. Bxc4 {[%emt 0:06:56]} O-O {[%emt 0:02:45]} 13. O-O {[%emt 0:06:44]} Bg5 {[%emt 0:01:51]} 14. Nc2 {[%emt 0:20:28]} Kh8 {[%emt 0:05:05]} 15. Nce3 {[%emt 0:09:11]} g6 {[%emt 0:05:08]} 16. Kh1 {[%emt 0:02:50]} Be6 {[%emt 0:10:56]} 17. Rc1 {[%emt 0:02:02]} Rb8 {[%emt 0:11:02]} 18. b3 {[%emt 0:09:38]} Bxd5 {[%emt 0:04:08]} 19. Bxd5 {[%emt 0:02:18]} Ne7 {[%emt 0:03:59]} 20. Bc4 {[%emt 0:01:11]} Qb6 {[%emt 0:04:10]} 21. Qd3 {[%emt 0:04:15]} f5 {[%emt 0:01:44]} 22. exf5 {[%emt 0:04:18]} Bxe3 {[%emt 0:04:51]} 23. fxe3 {[%emt 0:00:40]} gxf5 {[%emt 0:01:17]} 24. Rcd1 {[%emt 0:05:41]} Rf6 {[%emt 0:01:42]} 25. Bxa6 {[%emt 0:00:52]} d5 {[%emt 0:01:13]} 26. Qc3 {[%emt 0:01:19]} Qxa6 {[%emt 0:00:48]} 27. Qxe5 {[%emt 0:00:06]} Qd6 {[%emt 0:01:10]} 28. Qb2 {[%emt 0:00:29]} Rb4 {[%emt 0:03:56]} 29. a3 {[%emt 0:00:43]} Re4 {[%emt 0:00:43]} 30. b4 {[%emt 0:00:17]} Qe5 {[%emt 0:00:58]} 31. Qxe5 {[%emt 0:01:08]} Rxe5 {[%emt 0:00:12]} 32. Rd3 {[%emt 0:00:27]} Rfe6 {[%emt 0:01:53]} 33. b5 {[%emt 0:00:34]} Rxe3 {[%emt 0:00:53]} 34. Rxe3 {[%emt 0:00:29]} Rxe3 {[%emt 0:00:13]} 35. Ra1 {[%emt 0:00:21]} d4 {[%emt 0:02:16]} 36. Kg1 {[%emt 0:00:13]} Nd5 {[%emt 0:00:52]} 37. a4 {[%emt 0:00:42]} Rb3 {[%emt 0:00:39]} 38. Kf2 {[%emt 0:00:44]} Kg7 {[%emt 0:00:49]} 39. Rd1 {[%emt 0:00:34]} Rb4 {[%emt 0:00:59]} 40. Ra1 {[%emt 0:00:28]} Nc3 {[%emt 0:30:54]} 41. a5 {[%emt 0:30:19]} Rb2+ {[%emt 0:02:27]} 42. Kf3 {[%emt 0:00:23]} Ne4 {[%emt 0:00:21]} 43. Kf4 {[%emt 0:00:27]} Kf6 {[%emt 0:00:29]} 0-1

[Event "SVK Extraliga 2017-18"]
[Site "Slovakia"]
[Date "2017.12.09"]
[Round "5"]
[White "Krak, Tomas"]
[Black "Holtman, Teodor"]
[Result "0-1"]
[ECO "A80"]
[WhiteElo "2312"]
[BlackElo "2296"]
[Annotator "NA"]
[PlyCount "83"]
[EventDate "2017.??.??"]
[EventType "team-tourn"]
[EventCountry "SVK"]
[SourceTitle "playchess.com"]
[Source "ChessBase"]
[SourceQuality "1"]
[TimeControl "40/5400+30:1800+30"]

1. d4 {[%emt 0:01:41]} f5 {[%emt 0:11:45]} 2. Nc3 {[%emt 0:01:21]} d5 {[%emt 0:00:52]} 3. Bg5 {[%emt 0:05:37]} c6 {[%emt 0:00:41]} 4. e3 {[%emt 0:02:15]} g6 {[%emt 0:01:30]} 5. Nf3 {[%emt 0:13:33]} Nd7 {[%emt 0:04:24]} 6. h4 {[%emt 0:05:17]} Ngf6 {[%emt 0:11:20]} 7. h5 {[%emt 0:07:53]} Nxh5 {[%emt 0:00:02]} 8. Rxh5 {[%emt 0:05:22]} gxh5 {[%emt 0:00:01]} 9. Nh4 {[%emt 0:02:36]} Nf6 {[%emt 0:00:54]} 10. Bxf6 {[%emt 0:01:56]} exf6 {[%emt 0:00:02]} 11. Qxh5+ {[%emt 0:01:05]} Kd7 {[%emt 0:04:37]} 12. O-O-O {[%emt 0:19:36]} Kc7 {[%emt 0:01:22]} 13. Bd3 {[%emt 0:07:07]} Bb4 {[%emt 0:06:03]} 14. Ne2 {[%emt 0:02:03]} Bd7 {[%emt 0:09:02]} 15. Bxf5 {[%emt 0:07:08]} Qe7 {[%emt 0:00:59]} 16. Rh1 {[%emt 0:05:27]} Rag8 {[%emt 0:03:27]} 17. Qf3 {[%emt 0:04:03]} Bxf5 {[%emt 0:10:12]} 18. Qxf5 {[%emt 0:00:38]} Bd6 {[%emt 0:05:16]} 19. Rh3 {[%emt 0:02:34]} Rg5 {[%emt 0:02:12]} 20. Qf3 {[%emt 0:00:12]} Qe6 {[%emt 0:03:29]} 21. Nf4 {[%emt 0:01:38]} Bxf4 {[%emt 0:00:01]} 22. Qxf4+ {[%emt 0:00:08]} Kb6 {[%emt 0:00:08]} 23. e4 {[%emt 0:00:43]} dxe4 {[%emt 0:02:24]} 24. Ra3 {[%emt 0:01:35]} Ra5 {[%emt 0:04:49]} 25. Rb3+ {[%emt 0:00:25]} Rb5 {[%emt 0:00:44]} 26. Ra3 {[%emt 0:00:13]} Qd5 {[%emt 0:02:30]} 27. Qxf6 {[%emt 0:00:53]} Qg5+ {[%emt 0:00:11]} 28. Qxg5 {[%emt 0:00:04]} Rxg5 {[%emt 0:00:04]} 29. Re3 {[%emt 0:00:21]} Rf8 {[%emt 0:02:21]} 30. Re2 {[%emt 0:00:14]} Rg4 {[%emt 0:00:33]} 31. g3 {[%emt 0:00:11]} e3 {[%emt 0:00:40]} 32. fxe3 {[%emt 0:00:20]} Rxg3 {[%emt 0:00:03]} 33. e4 {[%emt 0:00:09]} Rf4 {[%emt 0:03:51]} 34. Nf5 {[%emt 0:00:06]} Rgg4 {[%emt 0:00:51]} 35. Nd6 {[%emt 0:01:10]} Kc7 {[%emt 0:00:04]} 36. e5 {[%emt 0:00:28]} Rxd4 {[%emt 0:05:25]} 37. c3 {[%emt 0:00:13]} Rdf4 {[%emt 0:04:30]} 38. Rh2 {[%emt 0:00:38]} Rh4 {[%emt 0:00:45]} 39. Rg2 {[%emt 0:00:11]} Rfg4 {[%emt 0:00:46]} 40. Rf2 {[%emt 0:00:16]} Rf4 {[%emt 0:30:50]} 41. Rg2 {[%emt 0:30:14]} c5 {[%emt 0:00:00]} 42. Rd2 {[%emt 0:00:00]} 0-1

[Event "SVK Extraliga 2017-18"]
[Site "Slovakia"]
[Date "2017.12.09"]
[Round "5"]
[White "Jablonicky, Martin"]
[Black "Vojtek, Vladimir"]
[Result "1-0"]
[ECO "C00"]
[WhiteElo "2302"]
[BlackElo "2293"]
[Annotator "NA"]
[PlyCount "95"]
[EventDate "2017.??.??"]
[EventType "team-tourn"]
[EventCountry "SVK"]
[SourceTitle "playchess.com"]
[Source "ChessBase"]
[SourceQuality "1"]
[TimeControl "40/5400+30:1800+30"]

{[%evp 15,91,0,0,0,0,0,10,0,19,18,38,35,30,34,35,22,32,11,37,23,43,43,33,0,2,0,0,0,0,0,0,0,0,0,0,0,0,0,0,0,0,0,0,0,12,32767,8,32767,32767,32767,32767,32767,31,94,32767,32767,32767,32767,32767,32767,32767,32767,32767,32767,32767,32767,32767,32767,32767,8,37,32767,32767,32767,985,5025,32767,12849]} 1. e4 {[%emt 0:00:04]} e6 {[%emt 0:00:11]} 2. d4 {[%emt 0:00:26]} d5 {[%emt 0:00:05]} 3. Bd3 {[%emt 0:00:03]} c5 {[%emt 0:01:14]} 4. exd5 {[%emt 0:00:58]} exd5 {[%emt 0:00:12]} 5. dxc5 {[%emt 0:00:50]} Bxc5 {[%emt 0:02:15]} 6. Nf3 {[%emt 0:00:17]} Nf6 {[%emt 0:02:33]} 7. O-O {[%emt 0:01:30]} O-O {[%emt 0:00:15]} 8. Nc3 {[%emt 0:08:39]} h6 {[%emt 0:15:28]} 9. h3 {[%emt 0:03:36]} Nc6 {[%emt 0:11:38]} 10. Bf4 {[%emt 0:01:10] C01: French: Exchange Variation} Be6 {[%emt 0:06:16]} 11. a3 {[%emt 0:13:31] LiveBook: 4 Games} d4 $146 {[%emt 0:07:54]} ({Predecessor:} 11... a5 12. Re1 Re8 13. Nb5 Rc8 14. Be3 Bf8 15. c3 Ne4 16. Nbd4 Bd7 17. Rc1 Qf6 {½-½ (49) Mirzoev,A (2510)-Chigaev,M (2337) St Petersburg 2011}) 12. Ne4 {[%emt 0:03:51]} Nxe4 {[%emt 0:00:40]} 13. Bxe4 {[%emt 0:00:02]} Bd5 {[%emt 0:00:10]} 14. Bxd5 {[%emt 0:03:00]} Qxd5 {[%emt 0:00:03]} 15. b4 {[%emt 0:00:07]} Be7 {[%emt 0:07:31]} 16. Qd3 {[%emt 0:01:07]} b5 {[%emt 0:03:31]} 17. Rad1 {[%emt 0:01:57]} Rfd8 {[%emt 0:05:07]} 18. c3 {[%emt 0:05:32]} Bf6 {[%emt 0:02:59]} 19. Be3 {[%emt 0:04:46]} a5 {[%emt 0:09:18]} 20. Nxd4 {[%emt 0:06:42]} axb4 {[%emt 0:05:40]} 21. axb4 {[%emt 0:00:16]} Bxd4 {[%emt 0:04:58]} 22. Bxd4 {[%emt 0:00:03]} Nxd4 {[%emt 0:02:51]} 23. Qxd4 {[%emt 0:00:09]} Qxd4 {[%emt 0:00:43]} 24. Rxd4 {[%emt 0:00:01]} Rxd4 {[%emt 0:00:51]} 25. cxd4 {[%emt 0:00:02]} Ra4 {[%emt 0:00:28]} 26. Rb1 {[%emt 0:00:02]} Kf8 {[%emt 0:00:05]} 27. Kf1 {[%emt 0:01:47]} Ke7 {[%emt 0:00:14]} 28. Ke2 {[%emt 0:02:47]} Kd6 {[%emt 0:00:48]} 29. Rb3 {[%emt 0:10:13]} f5 {[%emt 0:03:19]} 30. g4 {[%emt 0:10:40]} Ra2+ {[%emt 0:01:14]} 31. Ke3 {[%emt 0:01:14]} f4+ {[%emt 0:01:03]} 32. Kxf4 {[%emt 0:01:39]} Rxf2+ {[%emt 0:00:04]} 33. Ke4 {[%emt 0:00:11]} Re2+ {[%emt 0:03:43]} 34. Re3 {[%emt 0:05:28]} Rf2 {[%emt 0:02:42]} 35. Ra3 {[%emt 0:00:38]} Re2+ {[%emt 0:00:52]} 36. Kd3 {[%emt 0:04:52]} Rh2 {[%emt 0:00:06]} 37. Ra7 {[%emt 0:00:18]} Rxh3+ {[%emt 0:00:21]} 38. Ke4 {[%emt 0:00:02]} Rb3 {[%emt 0:00:51]} 39. Rxg7 {[%emt 0:00:11]} Rxb4 {[%emt 0:00:21]} 40. Rg6+ {[%emt 0:00:21]} Ke7 {[%emt 0:30:08]} 41. Rxh6 {[%emt 0:31:12]} Rb1 {[%emt 0:01:31]} 42. Kd5 {[%emt 0:06:31]} Rg1 {[%emt 0:00:00]} 43. Rh7+ {[%emt 0:00:00]} Kd8 {[%emt 0:00:00]} 44. Kd6 {[%emt 0:00:00]} Kc8 $2 {[%emt 0:00:00] [#]} (44... Ke8 $16) 45. Kc6 $1 {[%emt 0:00:00]} Kb8 {[%emt 0:00:00]} 46. Rb7+ $18 {[%emt 0:00:00]} Ka8 {[%emt 0:00:00]} 47. Rg7 {[%emt 0:00:00]} Kb8 {[%emt 0:00:00]} 48. Kxb5 {[%emt 0:00:00]} 1-0